[Event "Titled Tuesday Blitz July 25 Late 2023"]
[White "disciplinedbrat"]
[Black "Hamidi, Amir Mohammad"]
[BlackFideId "12563285"]
[WhiteElo "2259"]
[BlackElo "2739"]
[Result "1-0"]
[Round "9"]
[TimeControl "180+2"]
[Date "2023.07.25"]
[WhiteClock "0:00:10"]
[BlackClock "0:00:00"]
[Board "117"]

1. Nf3 {[%clk 0:03:00]}  Nf6 {[%clk 0:02:58]} 2. g3 {[%clk 0:03:00]}  d5 {[%clk 0:02:57]} 3. Bg2 {[%clk 0:03:01]}  c5 {[%clk 0:02:56]} 4. O-O {[%clk 0:03:01]}  Nc6 {[%clk 0:02:57]} 5. d4 {[%clk 0:03:01]}  Bg4 {[%clk 0:02:54]} 6. c3 {[%clk 0:02:56]}  e6 {[%clk 0:02:53]} 7. dxc5 {[%clk 0:02:56]}  Bxc5 {[%clk 0:02:52]} 8. b4 {[%clk 0:02:57]}  Bd6 {[%clk 0:02:52]} 9. b5 {[%clk 0:02:55]}  Ne5 {[%clk 0:02:48]} 10. Nxe5 {[%clk 0:02:54]}  Bxe5 {[%clk 0:02:49]} 11. f4 {[%clk 0:02:44]}  Bd6 {[%clk 0:02:43]} 12. f5 {[%clk 0:02:44]}  Qb6+ {[%clk 0:02:18]} 13. Kh1 {[%clk 0:02:39]}  Qxb5 {[%clk 0:01:57]} 14. c4 {[%clk 0:02:15]}  Qxc4 {[%clk 0:01:43]} 15. Nd2 {[%clk 0:02:14]}  Qb5 {[%clk 0:01:30]} 16. Rb1 {[%clk 0:02:01]}  Qd7 {[%clk 0:01:24]} 17. fxe6 {[%clk 0:01:51]}  Bxe6 {[%clk 0:01:23]} 18. e4 {[%clk 0:01:51]}  O-O {[%clk 0:01:20]} 19. exd5 {[%clk 0:01:44]}  Bxd5 {[%clk 0:01:20]} 20. Bxd5 {[%clk 0:01:44]}  Nxd5 {[%clk 0:01:20]} 21. Ne4 {[%clk 0:01:45]}  Qe6 {[%clk 0:00:52]} 22. Ng5 {[%clk 0:01:07]}  Qg6 {[%clk 0:00:20]} 23. Rxb7 {[%clk 0:00:38]}  Nc3 {[%clk 0:00:14]} 24. Qb3 {[%clk 0:00:33]}  Ne2 {[%clk 0:00:11]} 25. Bb2 {[%clk 0:00:27]}  Bxg3 {[%clk 0:00:07]} 26. Nxf7 {[%clk 0:00:22]}  Rxf7 {[%clk 0:00:03]} 27. Rbxf7 {[%clk 0:00:18]}  Qc6+ {[%clk 0:00:02]} 28. R7f3+ {[%clk 0:00:16]}  Kh8 {[%clk 0:00:02]} 29. Bxg7+ {[%clk 0:00:11]}  Kxg7 {[%clk 0:00:02]} 30. Qf7+ {[%clk 0:00:12]}  Kh6 {[%clk 0:00:01]} 31. hxg3 {[%clk 0:00:10]}  Nxg3+ {[%clk 0:00:01]} 32. Kg1 {[%clk 0:00:10]}  Nxf1 {[%clk 0:00:00]} 33. Rf6+ {[%clk 0:00:10]} 1-0


[Site "https://www.chess.com"]

[Event "Titled Tuesday Blitz July 25 Late 2023"]
[White "Akhayan, Ruben"]
[Black "Dwilewicz, Katarzyna"]
[WhiteFideId "204439"]
[BlackFideId "1148486"]
[WhiteElo "2247"]
[BlackElo "2376"]
[Result "1/2-1/2"]
[Round "9"]
[TimeControl "180+2"]
[Date "2023.07.25"]
[WhiteClock "0:00:12"]
[BlackClock "0:00:05"]
[Board "119"]

1. d4 {[%clk 0:03:00]}  d5 {[%clk 0:02:59]} 2. Nf3 {[%clk 0:03:00]}  Nf6 {[%clk 0:02:58]} 3. Bf4 {[%clk 0:02:55]}  g6 {[%clk 0:02:56]} 4. e3 {[%clk 0:02:54]}  Bg7 {[%clk 0:02:56]} 5. Be2 {[%clk 0:02:54]}  O-O {[%clk 0:02:54]} 6. h3 {[%clk 0:02:54]}  c5 {[%clk 0:02:51]} 7. c3 {[%clk 0:02:54]}  b6 {[%clk 0:02:50]} 8. O-O {[%clk 0:02:51]}  Nc6 {[%clk 0:02:51]} 9. Nbd2 {[%clk 0:02:52]}  Re8 {[%clk 0:02:44]} 10. Bh2 {[%clk 0:02:51]}  Bb7 {[%clk 0:02:42]} 11. a4 {[%clk 0:02:49]}  Ne4 {[%clk 0:02:40]} 12. Nxe4 {[%clk 0:02:39]}  dxe4 {[%clk 0:02:39]} 13. Nd2 {[%clk 0:02:37]}  Na5 {[%clk 0:02:18]} 14. Bb5 {[%clk 0:02:26]}  Rf8 {[%clk 0:02:10]} 15. dxc5 {[%clk 0:02:18]}  bxc5 {[%clk 0:02:09]} 16. Nc4 {[%clk 0:02:13]}  Nxc4 {[%clk 0:02:07]} 17. Bxc4 {[%clk 0:02:12]}  e5 {[%clk 0:01:56]} 18. Qc2 {[%clk 0:02:01]}  a5 {[%clk 0:01:45]} 19. Rfd1 {[%clk 0:02:00]}  Qb6 {[%clk 0:01:42]} 20. Bd5 {[%clk 0:01:55]}  Rad8 {[%clk 0:01:35]} 21. Bxb7 {[%clk 0:01:32]}  Qxb7 {[%clk 0:01:34]} 22. b3 {[%clk 0:01:20]}  f5 {[%clk 0:01:31]} 23. c4 {[%clk 0:01:18]}  f4 {[%clk 0:01:06]} 24. Rxd8 {[%clk 0:01:07]}  Rxd8 {[%clk 0:01:04]} 25. Rd1 {[%clk 0:01:08]}  Rf8 {[%clk 0:00:57]} 26. Rd5 {[%clk 0:00:59]}  fxe3 {[%clk 0:00:47]} 27. fxe3 {[%clk 0:00:59]}  Qf7 {[%clk 0:00:47]} 28. Qe2 {[%clk 0:00:53]}  Bh6 {[%clk 0:00:29]} 29. Bxe5 {[%clk 0:00:45]}  Qe6 {[%clk 0:00:10]} 30. Ba1 {[%clk 0:00:39]}  Rf5 {[%clk 0:00:06]} 31. Rxf5 {[%clk 0:00:31]}  gxf5 {[%clk 0:00:06]} 32. Kh1 {[%clk 0:00:26]}  f4 {[%clk 0:00:06]} 33. exf4 {[%clk 0:00:23]}  Bxf4 {[%clk 0:00:06]} 34. Qb2 {[%clk 0:00:21]}  Qg6 {[%clk 0:00:06]} 35. Qh8+ {[%clk 0:00:19]}  Kf7 {[%clk 0:00:05]} 36. Qd8 {[%clk 0:00:15]}  e3 {[%clk 0:00:05]} 37. Qd7+ {[%clk 0:00:15]}  Kf8 {[%clk 0:00:04]} 38. Qd8+ {[%clk 0:00:14]}  Kf7 {[%clk 0:00:04]} 39. Qd7+ {[%clk 0:00:14]}  Kf8 {[%clk 0:00:05]} 40. Qd8+ {[%clk 0:00:12]}  Kf7 {[%clk 0:00:05]} 1/2-1/2


[Site "https://www.chess.com"]

[Event "Titled Tuesday Blitz July 25 Late 2023"]
[White "Miguelitro69"]
[Black "Rian, Kapriaga"]
[BlackFideId "7103263"]
[WhiteElo "2272"]
[BlackElo "2332"]
[Result "1-0"]
[Round "9"]
[TimeControl "180+2"]
[Date "2023.07.25"]
[WhiteClock "0:00:04"]
[BlackClock "0:00:00"]
[Board "120"]

1. e4 {[%clk 0:02:59]}  c6 {[%clk 0:02:52]} 2. d4 {[%clk 0:02:59]}  d5 {[%clk 0:02:53]} 3. Nc3 {[%clk 0:02:59]}  dxe4 {[%clk 0:02:52]} 4. Nxe4 {[%clk 0:03:00]}  Nf6 {[%clk 0:02:53]} 5. Nxf6+ {[%clk 0:03:00]}  exf6 {[%clk 0:02:53]} 6. c3 {[%clk 0:03:01]}  Bd6 {[%clk 0:02:54]} 7. Bd3 {[%clk 0:03:01]}  O-O {[%clk 0:02:54]} 8. Ne2 {[%clk 0:03:01]}  Re8 {[%clk 0:02:53]} 9. O-O {[%clk 0:03:02]}  Be6 {[%clk 0:02:53]} 10. Nf4 {[%clk 0:03:00]}  Qc7 {[%clk 0:02:49]} 11. Nxe6 {[%clk 0:02:57]}  fxe6 {[%clk 0:02:37]} 12. h3 {[%clk 0:02:52]}  Nd7 {[%clk 0:02:36]} 13. Bc4 {[%clk 0:02:42]}  Nf8 {[%clk 0:02:35]} 14. Re1 {[%clk 0:02:40]}  b5 {[%clk 0:02:34]} 15. Bb3 {[%clk 0:02:39]}  Kh8 {[%clk 0:02:31]} 16. Qf3 {[%clk 0:02:25]}  a5 {[%clk 0:02:29]} 17. a4 {[%clk 0:02:24]}  b4 {[%clk 0:02:22]} 18. c4 {[%clk 0:02:22]}  c5 {[%clk 0:02:22]} 19. Be3 {[%clk 0:01:50]}  cxd4 {[%clk 0:02:19]} 20. Bxd4 {[%clk 0:01:50]}  e5 {[%clk 0:02:19]} 21. Be3 {[%clk 0:01:49]}  Bc5 {[%clk 0:02:19]} 22. Rac1 {[%clk 0:01:44]}  Rad8 {[%clk 0:02:15]} 23. Red1 {[%clk 0:01:31]}  Bxe3 {[%clk 0:02:07]} 24. Qxe3 {[%clk 0:01:29]}  Ne6 {[%clk 0:02:07]} 25. Rxd8 {[%clk 0:01:12]}  Rxd8 {[%clk 0:02:03]} 26. c5 {[%clk 0:01:13]}  Nd4 {[%clk 0:01:59]} 27. Ba2 {[%clk 0:01:12]}  h6 {[%clk 0:01:51]} 28. Bb1 {[%clk 0:01:11]}  f5 {[%clk 0:01:33]} 29. Qd3 {[%clk 0:00:55]}  e4 {[%clk 0:01:29]} 30. Qc4 {[%clk 0:00:54]}  Qe5 {[%clk 0:01:06]} 31. c6 {[%clk 0:00:39]}  f4 {[%clk 0:00:57]} 32. c7 {[%clk 0:00:38]}  Rc8 {[%clk 0:00:57]} 33. Qa6 {[%clk 0:00:27]}  Rxc7 {[%clk 0:00:48]} 34. Qa8+ {[%clk 0:00:16]}  Kh7 {[%clk 0:00:41]} 35. Rxc7 {[%clk 0:00:15]}  Qxc7 {[%clk 0:00:37]} 36. Qxe4+ {[%clk 0:00:15]}  Kg8 {[%clk 0:00:38]} 37. Bd3 {[%clk 0:00:14]}  Qd7 {[%clk 0:00:14]} 38. Qh7+ {[%clk 0:00:13]}  Kf8 {[%clk 0:00:13]} 39. Qe4 {[%clk 0:00:12]}  Kf7 {[%clk 0:00:12]} 40. Kh2 {[%clk 0:00:12]}  Kf6 {[%clk 0:00:11]} 41. Qxf4+ {[%clk 0:00:12]}  Ke7 {[%clk 0:00:10]} 42. Qe4+ {[%clk 0:00:12]}  Ne6 {[%clk 0:00:09]} 43. g3 {[%clk 0:00:12]}  Qd6 {[%clk 0:00:07]} 44. Kg2 {[%clk 0:00:12]}  Kf8 {[%clk 0:00:06]} 45. Bc4 {[%clk 0:00:11]}  Nd8 {[%clk 0:00:03]} 46. Qf5+ {[%clk 0:00:11]}  Ke7 {[%clk 0:00:03]} 47. Qe4+ {[%clk 0:00:10]}  Kf8 {[%clk 0:00:03]} 48. Qf3+ {[%clk 0:00:05]}  Ke7 {[%clk 0:00:03]} 49. b3 {[%clk 0:00:05]}  Kd7 {[%clk 0:00:02]} 50. Qg4+ {[%clk 0:00:05]}  Ke7 {[%clk 0:00:02]} 51. Qxg7+ {[%clk 0:00:05]}  Ke8 {[%clk 0:00:02]} 52. Qh8+ {[%clk 0:00:04]}  Kd7 {[%clk 0:00:03]} 53. Qxh6 {[%clk 0:00:04]}  Qxh6 {[%clk 0:00:00]} 54. Bb5+ {[%clk 0:00:04]} 1-0


[Site "https://www.chess.com"]

[Event "Titled Tuesday Blitz July 25 Late 2023"]
[White "Barwinska, Ewa"]
[Black "Oliveira, Tiago Batista"]
[WhiteFideId "21833761"]
[BlackFideId "2108291"]
[WhiteElo "2292"]
[BlackElo "2163"]
[Result "0-1"]
[Round "9"]
[TimeControl "180+2"]
[Date "2023.07.25"]
[WhiteClock "0:00:07"]
[BlackClock "0:00:11"]
[Board "123"]

1. e4 {[%clk 0:02:55]}  e5 {[%clk 0:02:58]} 2. Nf3 {[%clk 0:02:55]}  Nc6 {[%clk 0:02:59]} 3. Bb5 {[%clk 0:02:56]}  a6 {[%clk 0:02:58]} 4. Ba4 {[%clk 0:02:56]}  Nf6 {[%clk 0:02:58]} 5. O-O {[%clk 0:02:55]}  Nxe4 {[%clk 0:02:58]} 6. d4 {[%clk 0:02:54]}  b5 {[%clk 0:02:58]} 7. Bb3 {[%clk 0:02:53]}  d5 {[%clk 0:02:58]} 8. dxe5 {[%clk 0:02:50]}  Be6 {[%clk 0:02:58]} 9. c3 {[%clk 0:02:47]}  Bc5 {[%clk 0:02:58]} 10. Nbd2 {[%clk 0:02:38]}  O-O {[%clk 0:02:57]} 11. Qe2 {[%clk 0:02:28]}  Bf5 {[%clk 0:02:55]} 12. Nxe4 {[%clk 0:02:18]}  dxe4 {[%clk 0:02:54]} 13. Nd2 {[%clk 0:02:13]}  e3 {[%clk 0:02:48]} 14. fxe3 {[%clk 0:02:08]}  Bd3 {[%clk 0:02:48]} 15. Qg4 {[%clk 0:02:07]}  Bxf1 {[%clk 0:02:43]} 16. Nxf1 {[%clk 0:02:08]}  Nxe5 {[%clk 0:02:38]} 17. Qg3 {[%clk 0:02:08]}  Qf6 {[%clk 0:02:15]} 18. Bd2 {[%clk 0:02:02]}  Rad8 {[%clk 0:02:11]} 19. Kh1 {[%clk 0:01:54]}  Bd6 {[%clk 0:01:57]} 20. Qh3 {[%clk 0:01:52]}  Qf2 {[%clk 0:01:42]} 21. e4 {[%clk 0:01:48]}  Bc5 {[%clk 0:01:28]} 22. Be3 {[%clk 0:01:48]}  Bxe3 {[%clk 0:01:25]} 23. Nxe3 {[%clk 0:01:46]}  Rd2 {[%clk 0:01:13]} 24. Ng4 {[%clk 0:01:47]}  Nxg4 {[%clk 0:01:12]} 25. Qxg4 {[%clk 0:01:46]}  h5 {[%clk 0:01:09]} 26. Qg5 {[%clk 0:01:30]}  Rfd8 {[%clk 0:00:58]} 27. Rg1 {[%clk 0:01:27]}  h4 {[%clk 0:00:41]} 28. h3 {[%clk 0:01:26]}  R8d3 {[%clk 0:00:36]} 29. Qg4 {[%clk 0:01:09]}  Rg3 {[%clk 0:00:22]} 30. Qxh4 {[%clk 0:01:05]}  Rxg2 {[%clk 0:00:21]} 31. Bxf7+ {[%clk 0:00:23]}  Kxf7 {[%clk 0:00:17]} 32. Qh5+ {[%clk 0:00:19]}  g6 {[%clk 0:00:16]} 33. Qh7+ {[%clk 0:00:16]}  Kf6 {[%clk 0:00:14]} 34. Qh8+ {[%clk 0:00:13]}  Kg5 {[%clk 0:00:14]} 35. Qe5+ {[%clk 0:00:11]}  Kh6 {[%clk 0:00:13]} 36. Qh8+ {[%clk 0:00:11]}  Kg5 {[%clk 0:00:13]} 37. h4+ {[%clk 0:00:12]}  Kg4 {[%clk 0:00:12]} 38. Qc8+ {[%clk 0:00:12]}  Kxh4 {[%clk 0:00:11]} 39. Qh8+ {[%clk 0:00:12]}  Kg3 {[%clk 0:00:10]} 40. Qe5+ {[%clk 0:00:11]}  Qf4 {[%clk 0:00:10]} 41. Rxg2+ {[%clk 0:00:04]}  Rxg2 {[%clk 0:00:09]} 42. Qxf4+ {[%clk 0:00:04]}  Kxf4 {[%clk 0:00:09]} 43. Kxg2 {[%clk 0:00:05]}  Kxe4 {[%clk 0:00:10]} 44. Kg3 {[%clk 0:00:06]}  Kd3 {[%clk 0:00:09]} 45. Kg4 {[%clk 0:00:05]}  Kc2 {[%clk 0:00:09]} 46. Kg5 {[%clk 0:00:03]}  Kxb2 {[%clk 0:00:09]} 47. Kxg6 {[%clk 0:00:04]}  Kxc3 {[%clk 0:00:09]} 48. Kf6 {[%clk 0:00:04]}  Kb2 {[%clk 0:00:10]} 49. Ke6 {[%clk 0:00:05]}  Kxa2 {[%clk 0:00:10]} 50. Kd7 {[%clk 0:00:06]}  b4 {[%clk 0:00:10]} 51. Kxc7 {[%clk 0:00:07]}  b3 {[%clk 0:00:11]} 52. Kc6 {[%clk 0:00:07]}  b2 {[%clk 0:00:11]} 0-1


[Site "https://www.chess.com"]

[Event "Titled Tuesday Blitz July 25 Late 2023"]
[White "Gyulamiryan-koryun"]
[Black "Alexikov, Alexander"]
[BlackFideId "14103958"]
[WhiteElo "2071"]
[BlackElo "2211"]
[Result "1-0"]
[Round "9"]
[TimeControl "180+2"]
[Date "2023.07.25"]
[WhiteClock "0:00:57"]
[BlackClock "0:00:00"]
[Board "124"]

1. e4 {[%clk 0:02:55]}  c5 {[%clk 0:02:59]} 2. Nf3 {[%clk 0:02:52]}  d6 {[%clk 0:02:58]} 3. d4 {[%clk 0:02:52]}  cxd4 {[%clk 0:02:58]} 4. Nxd4 {[%clk 0:02:52]}  Nf6 {[%clk 0:02:59]} 5. Nc3 {[%clk 0:02:51]}  a6 {[%clk 0:02:59]} 6. f3 {[%clk 0:02:51]}  e6 {[%clk 0:02:58]} 7. Be3 {[%clk 0:02:50]}  h5 {[%clk 0:02:57]} 8. Qd2 {[%clk 0:02:49]}  Nbd7 {[%clk 0:02:56]} 9. O-O-O {[%clk 0:02:46]}  Qc7 {[%clk 0:02:56]} 10. Kb1 {[%clk 0:02:39]}  Be7 {[%clk 0:02:54]} 11. h4 {[%clk 0:02:22]}  b5 {[%clk 0:02:53]} 12. Bxb5 {[%clk 0:02:15]}  axb5 {[%clk 0:02:51]} 13. Ndxb5 {[%clk 0:02:15]}  Qb8 {[%clk 0:02:50]} 14. Nxd6+ {[%clk 0:02:15]}  Bxd6 {[%clk 0:02:47]} 15. Qxd6 {[%clk 0:02:14]}  Qxd6 {[%clk 0:02:47]} 16. Rxd6 {[%clk 0:02:14]}  Ke7 {[%clk 0:02:46]} 17. Rhd1 {[%clk 0:02:12]}  Ra6 {[%clk 0:02:37]} 18. Nb5 {[%clk 0:01:59]}  Bb7 {[%clk 0:01:55]} 19. Bg5 {[%clk 0:01:51]}  Rxd6 {[%clk 0:01:50]} 20. Nxd6 {[%clk 0:01:51]}  Bc6 {[%clk 0:01:49]} 21. Nc4 {[%clk 0:01:44]}  e5 {[%clk 0:01:32]} 22. Rd6 {[%clk 0:01:39]}  Rc8 {[%clk 0:01:24]} 23. b3 {[%clk 0:01:32]}  Bxe4 {[%clk 0:00:39]} 24. Rxd7+ {[%clk 0:01:25]}  Kxd7 {[%clk 0:00:28]} 25. Nb6+ {[%clk 0:01:25]}  Kc7 {[%clk 0:00:20]} 26. Nxc8 {[%clk 0:01:25]}  Kxc8 {[%clk 0:00:16]} 27. Bxf6 {[%clk 0:01:15]}  Bxf3 {[%clk 0:00:16]} 28. Bxg7 {[%clk 0:01:13]}  Bxg2 {[%clk 0:00:14]} 29. Bxe5 {[%clk 0:01:12]}  Kd7 {[%clk 0:00:14]} 30. c4 {[%clk 0:01:12]}  Ke6 {[%clk 0:00:14]} 31. Bc7 {[%clk 0:01:08]}  Kf5 {[%clk 0:00:13]} 32. a4 {[%clk 0:01:06]}  Kg4 {[%clk 0:00:12]} 33. Bd8 {[%clk 0:01:06]}  f5 {[%clk 0:00:11]} 34. b4 {[%clk 0:01:02]}  f4 {[%clk 0:00:10]} 35. b5 {[%clk 0:01:03]}  f3 {[%clk 0:00:10]} 36. Bb6 {[%clk 0:01:01]}  Kg3 {[%clk 0:00:09]} 37. c5 {[%clk 0:01:00]}  f2 {[%clk 0:00:09]} 38. c6 {[%clk 0:01:00]}  f1=Q+ {[%clk 0:00:07]} 39. Kb2 {[%clk 0:00:59]}  Qe2+ {[%clk 0:00:06]} 40. Kb3 {[%clk 0:00:58]}  Qd3+ {[%clk 0:00:05]} 41. Kb4 {[%clk 0:00:58]}  Qb1+ {[%clk 0:00:04]} 42. Ka5 {[%clk 0:00:57]}  Kxh4 {[%clk 0:00:00]} 43. c7 {[%clk 0:00:57]} 1-0


[Site "https://www.chess.com"]

[Event "Titled Tuesday Blitz July 25 Late 2023"]
[White "Tsukerman, Julia"]
[Black "Alahakoon, Isuru"]
[WhiteFideId "2621649"]
[BlackFideId "9900993"]
[WhiteElo "2122"]
[BlackElo "2318"]
[Result "0-1"]
[Round "9"]
[TimeControl "180+2"]
[Date "2023.07.25"]
[WhiteClock "0:00:14"]
[BlackClock "0:00:49"]
[Board "125"]

1. e4 {[%clk 0:03:00]}  d5 {[%clk 0:02:49]} 2. exd5 {[%clk 0:02:59]}  Qxd5 {[%clk 0:02:49]} 3. d4 {[%clk 0:02:59]}  Nc6 {[%clk 0:02:49]} 4. Nf3 {[%clk 0:02:55]}  Bg4 {[%clk 0:02:49]} 5. Be2 {[%clk 0:02:56]}  Nf6 {[%clk 0:02:48]} 6. c3 {[%clk 0:02:54]}  O-O-O {[%clk 0:02:46]} 7. O-O {[%clk 0:02:50]}  e6 {[%clk 0:02:45]} 8. Bf4 {[%clk 0:02:45]}  h5 {[%clk 0:02:41]} 9. Nbd2 {[%clk 0:02:27]}  Qf5 {[%clk 0:02:32]} 10. Be3 {[%clk 0:02:07]}  Nd5 {[%clk 0:02:20]} 11. Qb1 {[%clk 0:01:50]}  Nxe3 {[%clk 0:02:13]} 12. fxe3 {[%clk 0:01:26]}  Qxb1 {[%clk 0:02:07]} 13. Raxb1 {[%clk 0:01:24]}  f6 {[%clk 0:02:05]} 14. h3 {[%clk 0:01:22]}  Bf5 {[%clk 0:02:04]} 15. e4 {[%clk 0:01:22]}  Bh7 {[%clk 0:02:01]} 16. Rbe1 {[%clk 0:01:20]}  g5 {[%clk 0:01:56]} 17. Bc4 {[%clk 0:01:19]}  Re8 {[%clk 0:01:48]} 18. Nh2 {[%clk 0:01:15]}  Bg7 {[%clk 0:01:40]} 19. Nb3 {[%clk 0:01:14]}  e5 {[%clk 0:01:37]} 20. d5 {[%clk 0:01:12]}  Ne7 {[%clk 0:01:34]} 21. Nc5 {[%clk 0:01:09]}  Bg8 {[%clk 0:01:11]} 22. b3 {[%clk 0:00:54]}  Ng6 {[%clk 0:01:05]} 23. g3 {[%clk 0:00:35]}  h4 {[%clk 0:01:04]} 24. Kg2 {[%clk 0:00:27]}  hxg3 {[%clk 0:01:02]} 25. Kxg3 {[%clk 0:00:27]}  Nf4 {[%clk 0:01:02]} 26. Ne6 {[%clk 0:00:19]}  Bxe6 {[%clk 0:00:51]} 27. dxe6 {[%clk 0:00:14]}  Rxh3+ {[%clk 0:00:51]} 28. Kg4 {[%clk 0:00:14]}  Rxh2 {[%clk 0:00:49]} 0-1


[Site "https://www.chess.com"]

[Event "Titled Tuesday Blitz July 25 Late 2023"]
[White "Hartikainen, Jarmo"]
[Black "UgarteCesar"]
[WhiteFideId "503134"]
[WhiteElo "2081"]
[BlackElo "2274"]
[Result "0-1"]
[Round "9"]
[TimeControl "180+2"]
[Date "2023.07.25"]
[WhiteClock "0:00:00"]
[BlackClock "0:00:52"]
[Board "126"]

1. e4 {[%clk 0:03:00]}  c5 {[%clk 0:02:58]} 2. c3 {[%clk 0:03:00]}  d5 {[%clk 0:02:57]} 3. exd5 {[%clk 0:03:00]}  Qxd5 {[%clk 0:02:57]} 4. d4 {[%clk 0:03:00]}  Nc6 {[%clk 0:02:57]} 5. Nf3 {[%clk 0:02:59]}  Bg4 {[%clk 0:02:56]} 6. Be2 {[%clk 0:02:55]}  cxd4 {[%clk 0:02:56]} 7. cxd4 {[%clk 0:02:50]}  e6 {[%clk 0:02:55]} 8. Nc3 {[%clk 0:02:49]}  Bb4 {[%clk 0:02:55]} 9. O-O {[%clk 0:02:48]}  Qa5 {[%clk 0:02:54]} 10. Bd2 {[%clk 0:02:13]}  Nge7 {[%clk 0:02:49]} 11. a3 {[%clk 0:02:00]}  Bxc3 {[%clk 0:02:48]} 12. Bxc3 {[%clk 0:01:59]}  Qd8 {[%clk 0:02:49]} 13. h3 {[%clk 0:01:50]}  Bh5 {[%clk 0:02:45]} 14. Qb3 {[%clk 0:01:44]}  b6 {[%clk 0:02:41]} 15. Rfd1 {[%clk 0:01:33]}  O-O {[%clk 0:02:40]} 16. Qb5 {[%clk 0:01:19]}  Qd5 {[%clk 0:02:31]} 17. Qxd5 {[%clk 0:01:08]}  Nxd5 {[%clk 0:02:29]} 18. Rac1 {[%clk 0:00:52]}  Nce7 {[%clk 0:02:11]} 19. g4 {[%clk 0:00:43]}  Bg6 {[%clk 0:02:11]} 20. Ne5 {[%clk 0:00:43]}  Rac8 {[%clk 0:02:09]} 21. Bd2 {[%clk 0:00:19]}  Bc2 {[%clk 0:02:04]} 22. Re1 {[%clk 0:00:19]}  f6 {[%clk 0:02:01]} 23. Nc4 {[%clk 0:00:18]}  Bg6 {[%clk 0:01:53]} 24. Nd6 {[%clk 0:00:17]}  Rcd8 {[%clk 0:01:47]} 25. Nb5 {[%clk 0:00:11]}  Rd7 {[%clk 0:01:43]} 26. Bf3 {[%clk 0:00:09]}  Rfd8 {[%clk 0:01:43]} 27. b4 {[%clk 0:00:08]}  Bd3 {[%clk 0:01:38]} 28. Nc3 {[%clk 0:00:08]}  Kf7 {[%clk 0:01:29]} 29. Nxd5 {[%clk 0:00:08]}  Nxd5 {[%clk 0:01:29]} 30. Bxd5 {[%clk 0:00:08]}  Rxd5 {[%clk 0:01:29]} 31. Be3 {[%clk 0:00:09]}  Bb5 {[%clk 0:01:16]} 32. Rc7+ {[%clk 0:00:08]}  R8d7 {[%clk 0:01:16]} 33. Rec1 {[%clk 0:00:09]}  g6 {[%clk 0:01:12]} 34. Rxd7+ {[%clk 0:00:09]}  Rxd7 {[%clk 0:01:12]} 35. f3 {[%clk 0:00:09]}  Ke7 {[%clk 0:01:06]} 36. Kf2 {[%clk 0:00:09]}  Kd8 {[%clk 0:01:05]} 37. Rc2 {[%clk 0:00:09]}  Ba4 {[%clk 0:01:04]} 38. Rd2 {[%clk 0:00:08]}  Rc7 {[%clk 0:01:02]} 39. d5 {[%clk 0:00:05]}  e5 {[%clk 0:00:58]} 40. f4 {[%clk 0:00:03]}  Rc3 {[%clk 0:00:57]} 41. fxe5 {[%clk 0:00:03]}  fxe5 {[%clk 0:00:57]} 42. d6 {[%clk 0:00:03]}  Rxa3 {[%clk 0:00:53]} 43. Bg5+ {[%clk 0:00:04]}  Kd7 {[%clk 0:00:53]} 44. Bf6 {[%clk 0:00:03]}  e4 {[%clk 0:00:52]} 45. h4 {[%clk 0:00:00]}  e3+ {[%clk 0:00:52]} 0-1


[Site "https://www.chess.com"]

[Event "Titled Tuesday Blitz July 25 Late 2023"]
[White "Thiel, Thomas"]
[Black "Burke, Paul"]
[WhiteFideId "4615964"]
[BlackFideId "2605767"]
[WhiteElo "2244"]
[BlackElo "1929"]
[Result "1-0"]
[Round "9"]
[TimeControl "180+2"]
[Date "2023.07.25"]
[WhiteClock "0:01:28"]
[BlackClock "0:01:27"]
[Board "127"]

1. e4 {[%clk 0:03:00]}  a6 {[%clk 0:02:56]} 2. d4 {[%clk 0:03:00]}  d6 {[%clk 0:02:57]} 3. Bd3 {[%clk 0:02:57]}  g6 {[%clk 0:02:56]} 4. Be3 {[%clk 0:02:51]}  h6 {[%clk 0:02:56]} 5. Nd2 {[%clk 0:02:51]}  Bg7 {[%clk 0:02:56]} 6. Qe2 {[%clk 0:02:48]}  Nd7 {[%clk 0:02:56]} 7. f4 {[%clk 0:02:42]}  e6 {[%clk 0:02:50]} 8. e5 {[%clk 0:02:39]}  Ne7 {[%clk 0:02:49]} 9. O-O-O {[%clk 0:02:36]}  b6 {[%clk 0:02:46]} 10. g4 {[%clk 0:02:31]}  Bb7 {[%clk 0:02:45]} 11. Ngf3 {[%clk 0:02:26]}  O-O {[%clk 0:02:40]} 12. Rhg1 {[%clk 0:02:12]}  Nd5 {[%clk 0:02:33]} 13. f5 {[%clk 0:02:10]}  Nxe3 {[%clk 0:02:32]} 14. Qxe3 {[%clk 0:02:10]}  dxe5 {[%clk 0:02:18]} 15. dxe5 {[%clk 0:02:07]}  exf5 {[%clk 0:02:18]} 16. gxf5 {[%clk 0:02:07]}  Qe7 {[%clk 0:01:57]} 17. fxg6 {[%clk 0:01:40]}  fxg6 {[%clk 0:01:51]} 18. Rxg6 {[%clk 0:01:32]}  Bxf3 {[%clk 0:01:32]} 19. Nxf3 {[%clk 0:01:33]}  Rxf3 {[%clk 0:01:32]} 20. Qxf3 {[%clk 0:01:29]}  Nxe5 {[%clk 0:01:27]} 21. Qxa8+ {[%clk 0:01:28]} 1-0


[Site "https://www.chess.com"]

[Event "Titled Tuesday Blitz July 25 Late 2023"]
[White "Fressinet, Laurent"]
[Black "Nakamura, Hikaru"]
[WhiteFideId "608742"]
[BlackFideId "2016192"]
[WhiteElo "2921"]
[BlackElo "3263"]
[Result "0-1"]
[Round "10"]
[TimeControl "180+2"]
[Date "2023.07.25"]
[WhiteClock "0:00:04"]
[BlackClock "0:01:07"]
[Board "2"]

1. d4 {[%clk 0:03:00]}  a6 {[%clk 0:03:00]} 2. e4 {[%clk 0:02:59]}  c6 {[%clk 0:03:00]} 3. Nf3 {[%clk 0:02:57]}  d5 {[%clk 0:03:01]} 4. e5 {[%clk 0:02:55]}  Bf5 {[%clk 0:02:59]} 5. Be2 {[%clk 0:02:49]}  e6 {[%clk 0:02:59]} 6. O-O {[%clk 0:02:49]}  h6 {[%clk 0:02:59]} 7. Nbd2 {[%clk 0:02:47]}  Ne7 {[%clk 0:02:58]} 8. Nb3 {[%clk 0:02:47]}  Nd7 {[%clk 0:02:58]} 9. a4 {[%clk 0:02:44]}  Qc7 {[%clk 0:02:49]} 10. a5 {[%clk 0:02:43]}  g5 {[%clk 0:02:49]} 11. Be3 {[%clk 0:02:36]}  Bg6 {[%clk 0:02:47]} 12. Ne1 {[%clk 0:02:34]}  Nf5 {[%clk 0:02:45]} 13. Nd3 {[%clk 0:02:23]}  O-O-O {[%clk 0:02:39]} 14. Bd2 {[%clk 0:02:12]}  f6 {[%clk 0:02:12]} 15. exf6 {[%clk 0:02:00]}  Bd6 {[%clk 0:02:12]} 16. h3 {[%clk 0:01:43]}  Nxf6 {[%clk 0:02:11]} 17. Ndc5 {[%clk 0:01:36]}  Rde8 {[%clk 0:02:03]} 18. Bd3 {[%clk 0:01:34]}  Nh4 {[%clk 0:01:46]} 19. Re1 {[%clk 0:01:30]}  Bxd3 {[%clk 0:01:39]} 20. cxd3 {[%clk 0:01:31]}  Rhg8 {[%clk 0:01:29]} 21. f3 {[%clk 0:00:35]}  Bh2+ {[%clk 0:01:17]} 22. Kh1 {[%clk 0:00:33]}  Nh5 {[%clk 0:01:17]} 23. Re5 {[%clk 0:00:16]}  Bxe5 {[%clk 0:01:16]} 24. dxe5 {[%clk 0:00:17]}  Ng3+ {[%clk 0:01:12]} 25. Kg1 {[%clk 0:00:14]}  Qxe5 {[%clk 0:01:13]} 26. Nxb7 {[%clk 0:00:08]}  Kxb7 {[%clk 0:01:10]} 27. Nc5+ {[%clk 0:00:08]}  Ka8 {[%clk 0:01:09]} 28. Qa4 {[%clk 0:00:07]}  Qd4+ {[%clk 0:01:07]} 29. Qxd4 {[%clk 0:00:04]}  Ne2+ {[%clk 0:01:07]} 0-1


[Site "https://www.chess.com"]